[Event "Titled Tuesday Blitz January 03 Early 2023"]
[White "Korchmar, Vasiliy"]
[Black "Gutkin, Ilya"]
[WhiteFideId "24131750"]
[BlackFideId "16203470"]
[WhiteElo "2438"]
[BlackElo "2273"]
[Result "1-0"]
[Round "05"]
[TimeControl "180+2"]
[Date "2023.01.03"]
[WhiteClock "0:01:18"]
[BlackClock "0:00:02"]

1. Nf3 {[%clk 0:02:52]}  c5 {[%clk 0:02:52]} 2. g3 {[%clk 0:02:48]}  Nc6 {[%clk 0:02:53]} 3. Bg2 {[%clk 0:02:45]}  g6 {[%clk 0:02:53]} 4. O-O {[%clk 0:02:43]}  Bg7 {[%clk 0:02:53]} 5. c4 {[%clk 0:02:42]}  d6 {[%clk 0:02:53]} 6. Nc3 {[%clk 0:02:39]}  e6 {[%clk 0:02:50]} 7. b3 {[%clk 0:02:38]}  Nge7 {[%clk 0:02:49]} 8. Bb2 {[%clk 0:02:38]}  O-O {[%clk 0:02:49]} 9. e3 {[%clk 0:02:36]}  Nf5 {[%clk 0:02:48]} 10. Qc2 {[%clk 0:02:25]}  Rb8 {[%clk 0:02:46]} 11. Ne4 {[%clk 0:02:23]}  e5 {[%clk 0:02:39]} 12. a3 {[%clk 0:02:16]}  b6 {[%clk 0:02:34]} 13. h4 {[%clk 0:02:16]}  Bb7 {[%clk 0:02:33]} 14. d3 {[%clk 0:02:14]}  h6 {[%clk 0:02:28]} 15. Bc3 {[%clk 0:02:08]}  Nfe7 {[%clk 0:02:25]} 16. b4 {[%clk 0:02:06]}  f5 {[%clk 0:02:23]} 17. Ned2 {[%clk 0:02:06]}  Qc7 {[%clk 0:02:00]} 18. b5 {[%clk 0:02:06]}  Nd8 {[%clk 0:01:58]} 19. a4 {[%clk 0:02:06]}  d5 {[%clk 0:01:47]} 20. cxd5 {[%clk 0:02:06]}  Nxd5 {[%clk 0:01:46]} 21. Bb2 {[%clk 0:02:02]}  Ne6 {[%clk 0:01:39]} 22. Nc4 {[%clk 0:01:59]}  Nb4 {[%clk 0:01:35]} 23. Qb3 {[%clk 0:01:58]}  e4 {[%clk 0:01:17]} 24. dxe4 {[%clk 0:01:37]}  fxe4 {[%clk 0:00:59]} 25. Bxg7 {[%clk 0:01:23]}  Kxg7 {[%clk 0:00:55]} 26. Nfd2 {[%clk 0:01:23]}  Rbe8 {[%clk 0:00:40]} 27. Nxe4 {[%clk 0:01:22]}  Bxe4 {[%clk 0:00:26]} 28. Bxe4 {[%clk 0:01:22]}  Nd4 {[%clk 0:00:22]} 29. exd4 {[%clk 0:01:19]}  Rxe4 {[%clk 0:00:21]} 30. dxc5 {[%clk 0:01:19]}  Qxc5 {[%clk 0:00:20]} 31. Rac1 {[%clk 0:01:19]}  Qd4 {[%clk 0:00:09]} 32. Ne3 {[%clk 0:01:18]}  h5 {[%clk 0:00:02]} 33. Rc4 {[%clk 0:01:18]} 1-0


[Site "https://www.chess.com"]

[Event "Titled Tuesday Blitz January 03 Early 2023"]
[White "Balint, Vilmos"]
[Black "Blanco Ronquillo, Humberto L."]
[WhiteFideId "718050"]
[BlackFideId "3504239"]
[WhiteElo "2169"]
[BlackElo "2442"]
[Result "0-1"]
[Round "05"]
[TimeControl "180+2"]
[Date "2023.01.03"]
[WhiteClock "0:01:28"]
[BlackClock "0:01:14"]

1. e4 {[%clk 0:03:00]}  c5 {[%clk 0:02:58]} 2. Nf3 {[%clk 0:03:01]}  Nc6 {[%clk 0:02:58]} 3. d4 {[%clk 0:03:01]}  cxd4 {[%clk 0:02:59]} 4. Nxd4 {[%clk 0:03:01]}  e5 {[%clk 0:02:59]} 5. Nb5 {[%clk 0:03:02]}  d6 {[%clk 0:02:59]} 6. c4 {[%clk 0:03:02]}  Be7 {[%clk 0:02:57]} 7. Bd3 {[%clk 0:03:02]}  Be6 {[%clk 0:02:53]} 8. O-O {[%clk 0:03:00]}  Rc8 {[%clk 0:02:52]} 9. b3 {[%clk 0:02:58]}  a6 {[%clk 0:02:51]} 10. N5c3 {[%clk 0:02:58]}  Bg5 {[%clk 0:02:52]} 11. Ba3 {[%clk 0:02:56]}  Nge7 {[%clk 0:02:48]} 12. c5 {[%clk 0:02:39]}  dxc5 {[%clk 0:02:30]} 13. Bxc5 {[%clk 0:02:40]}  Nd4 {[%clk 0:02:27]} 14. Bxd4 {[%clk 0:02:37]}  Qxd4 {[%clk 0:02:26]} 15. Bc4 {[%clk 0:02:09]}  Bxc4 {[%clk 0:02:22]} 16. bxc4 {[%clk 0:02:09]}  Rxc4 {[%clk 0:02:17]} 17. Qb3 {[%clk 0:02:05]}  O-O {[%clk 0:02:01]} 18. Rd1 {[%clk 0:02:05]}  Qc5 {[%clk 0:01:57]} 19. Nd5 {[%clk 0:01:56]}  Nxd5 {[%clk 0:01:56]} 20. exd5 {[%clk 0:01:49]}  Rc2 {[%clk 0:01:55]} 21. Qg3 {[%clk 0:01:49]}  Bc1 {[%clk 0:01:24]} 22. a4 {[%clk 0:01:42]}  Bb2 {[%clk 0:01:18]} 23. Ra2 {[%clk 0:01:40]}  Qxd5 {[%clk 0:01:18]} 24. Nc3 {[%clk 0:01:28]}  Bxc3 {[%clk 0:01:14]} 0-1


[Site "https://www.chess.com"]

[Event "Titled Tuesday Blitz January 03 Early 2023"]
[White "Piesik, Piotr"]
[Black "Petrova, Irina"]
[WhiteFideId "1136194"]
[BlackFideId "14124122"]
[WhiteElo "2426"]
[BlackElo "2108"]
[Result "1-0"]
[Round "05"]
[TimeControl "180+2"]
[Date "2023.01.03"]
[WhiteClock "0:00:04"]
[BlackClock "0:00:01"]

1. Nf3 {[%clk 0:02:48]}  d6 {[%clk 0:02:48]} 2. d4 {[%clk 0:02:47]}  g6 {[%clk 0:02:48]} 3. g3 {[%clk 0:02:46]}  Bg7 {[%clk 0:02:49]} 4. Bg2 {[%clk 0:02:47]}  Nf6 {[%clk 0:02:49]} 5. O-O {[%clk 0:02:47]}  O-O {[%clk 0:02:50]} 6. Nbd2 {[%clk 0:02:47]}  Nc6 {[%clk 0:02:50]} 7. e4 {[%clk 0:02:48]}  e5 {[%clk 0:02:49]} 8. dxe5 {[%clk 0:02:48]}  dxe5 {[%clk 0:02:50]} 9. c3 {[%clk 0:02:48]}  Qe7 {[%clk 0:02:50]} 10. Qe2 {[%clk 0:02:47]}  Rd8 {[%clk 0:02:50]} 11. b4 {[%clk 0:02:47]}  a6 {[%clk 0:02:50]} 12. a4 {[%clk 0:02:47]}  Nd7 {[%clk 0:02:33]} 13. Nc4 {[%clk 0:02:44]}  Nf8 {[%clk 0:02:21]} 14. Ne3 {[%clk 0:02:39]}  Be6 {[%clk 0:02:16]} 15. Ba3 {[%clk 0:02:38]}  Qf6 {[%clk 0:02:13]} 16. Nd2 {[%clk 0:02:30]}  Bh6 {[%clk 0:02:06]} 17. Ndc4 {[%clk 0:02:19]}  b5 {[%clk 0:02:00]} 18. Nb2 {[%clk 0:02:04]}  Rab8 {[%clk 0:01:55]} 19. axb5 {[%clk 0:02:02]}  axb5 {[%clk 0:01:56]} 20. Nd5 {[%clk 0:01:54]}  Bxd5 {[%clk 0:01:54]} 21. exd5 {[%clk 0:01:55]}  Ne7 {[%clk 0:01:54]} 22. Rfd1 {[%clk 0:01:48]}  Nf5 {[%clk 0:01:43]} 23. Nd3 {[%clk 0:01:44]}  Bg7 {[%clk 0:01:41]} 24. Nc5 {[%clk 0:01:41]}  Nd6 {[%clk 0:01:41]} 25. Bc1 {[%clk 0:01:38]}  Nd7 {[%clk 0:01:28]} 26. h4 {[%clk 0:01:18]}  h6 {[%clk 0:01:23]} 27. Ne4 {[%clk 0:01:01]}  Nxe4 {[%clk 0:01:20]} 28. Bxe4 {[%clk 0:01:01]}  Nb6 {[%clk 0:01:18]} 29. Qxb5 {[%clk 0:00:55]}  Nxd5 {[%clk 0:01:14]} 30. Qc4 {[%clk 0:00:52]}  Nb6 {[%clk 0:01:09]} 31. Rxd8+ {[%clk 0:00:51]}  Qxd8 {[%clk 0:01:05]} 32. Qe2 {[%clk 0:00:52]}  f5 {[%clk 0:00:59]} 33. Bc2 {[%clk 0:00:52]}  e4 {[%clk 0:01:00]} 34. Ra3 {[%clk 0:00:42]}  Kh7 {[%clk 0:00:58]} 35. h5 {[%clk 0:00:39]}  g5 {[%clk 0:00:34]} 36. g4 {[%clk 0:00:39]}  Nd5 {[%clk 0:00:26]} 37. Bd2 {[%clk 0:00:39]}  Nf4 {[%clk 0:00:21]} 38. Qe3 {[%clk 0:00:18]}  Nd5 {[%clk 0:00:15]} 39. Qc5 {[%clk 0:00:18]}  Kh8 {[%clk 0:00:08]} 40. gxf5 {[%clk 0:00:17]}  Nf6 {[%clk 0:00:09]} 41. Be3 {[%clk 0:00:14]}  Nxh5 {[%clk 0:00:07]} 42. Bxe4 {[%clk 0:00:10]}  Nf6 {[%clk 0:00:07]} 43. Bc2 {[%clk 0:00:09]}  Qd7 {[%clk 0:00:05]} 44. Ra1 {[%clk 0:00:08]}  Qe8 {[%clk 0:00:04]} 45. Rd1 {[%clk 0:00:08]}  Qh5 {[%clk 0:00:03]} 46. Rd4 {[%clk 0:00:04]}  Qe2 {[%clk 0:00:02]} 47. Bd3 {[%clk 0:00:04]}  Qe1+ {[%clk 0:00:02]} 48. Kg2 {[%clk 0:00:04]}  g4 {[%clk 0:00:02]} 49. Bf4 {[%clk 0:00:04]}  Qd1 {[%clk 0:00:01]} 50. Bg3 {[%clk 0:00:04]}  Qf3+ {[%clk 0:00:01]} 51. Kg1 {[%clk 0:00:04]}  Qd1+ {[%clk 0:00:01]} 52. Bf1 {[%clk 0:00:04]} 1-0


[Site "https://www.chess.com"]

[Event "Titled Tuesday Blitz January 03 Early 2023"]
[White "Rosenberg, Evan S"]
[Black "Melian, Juan Sebastian"]
[WhiteFideId "2019299"]
[BlackFideId "3706575"]
[WhiteElo "1956"]
[BlackElo "2293"]
[Result "0-1"]
[Round "05"]
[TimeControl "180+2"]
[Date "2023.01.03"]
[WhiteClock "0:00:12"]
[BlackClock "0:00:14"]

1. d4 {[%clk 0:03:00]}  Nf6 {[%clk 0:02:53]} 2. Nf3 {[%clk 0:03:00]}  e6 {[%clk 0:02:48]} 3. g3 {[%clk 0:03:00]}  d5 {[%clk 0:02:47]} 4. Bg2 {[%clk 0:03:00]}  Be7 {[%clk 0:02:48]} 5. O-O {[%clk 0:03:01]}  O-O {[%clk 0:02:49]} 6. c4 {[%clk 0:03:01]}  dxc4 {[%clk 0:02:49]} 7. Qc2 {[%clk 0:03:00]}  a6 {[%clk 0:02:49]} 8. a4 {[%clk 0:03:00]}  Bd7 {[%clk 0:02:50]} 9. Qxc4 {[%clk 0:02:51]}  Bc6 {[%clk 0:02:50]} 10. Bg5 {[%clk 0:02:37]}  Bd5 {[%clk 0:02:49]} 11. Qc2 {[%clk 0:02:35]}  Be4 {[%clk 0:02:49]} 12. Qc1 {[%clk 0:02:35]}  Nc6 {[%clk 0:02:49]} 13. Bxf6 {[%clk 0:02:21]}  Bxf6 {[%clk 0:02:49]} 14. e3 {[%clk 0:02:22]}  Nb4 {[%clk 0:02:46]} 15. Nc3 {[%clk 0:02:06]}  Bg6 {[%clk 0:02:32]} 16. Ne5 {[%clk 0:01:57]}  Bxe5 {[%clk 0:02:28]} 17. dxe5 {[%clk 0:01:57]}  Nd3 {[%clk 0:02:26]} 18. Qd2 {[%clk 0:01:48]}  Nxe5 {[%clk 0:02:25]} 19. Qxd8 {[%clk 0:01:47]}  Raxd8 {[%clk 0:02:26]} 20. Bxb7 {[%clk 0:01:47]}  a5 {[%clk 0:02:22]} 21. Nb5 {[%clk 0:01:30]}  Rb8 {[%clk 0:01:39]} 22. Bg2 {[%clk 0:01:19]}  Bd3 {[%clk 0:01:19]} 23. Rfc1 {[%clk 0:01:19]}  Bxb5 {[%clk 0:01:10]} 24. axb5 {[%clk 0:01:19]}  Rxb5 {[%clk 0:01:11]} 25. Rxc7 {[%clk 0:01:17]}  Rxb2 {[%clk 0:01:11]} 26. Be4 {[%clk 0:01:03]}  g6 {[%clk 0:00:49]} 27. Rxa5 {[%clk 0:00:58]}  Ng4 {[%clk 0:00:45]} 28. Rc2 {[%clk 0:00:55]}  Rfb8 {[%clk 0:00:41]} 29. h3 {[%clk 0:00:47]}  Rxc2 {[%clk 0:00:39]} 30. Bxc2 {[%clk 0:00:47]}  Nf6 {[%clk 0:00:38]} 31. Rc5 {[%clk 0:00:33]}  Kg7 {[%clk 0:00:33]} 32. e4 {[%clk 0:00:31]}  Nd7 {[%clk 0:00:32]} 33. Rc7 {[%clk 0:00:30]}  Ne5 {[%clk 0:00:32]} 34. Kg2 {[%clk 0:00:27]}  Rb2 {[%clk 0:00:27]} 35. g4 {[%clk 0:00:20]}  g5 {[%clk 0:00:26]} 36. Kg3 {[%clk 0:00:20]}  Ng6 {[%clk 0:00:26]} 37. Ba4 {[%clk 0:00:16]}  Kf6 {[%clk 0:00:22]} 38. Be8 {[%clk 0:00:16]}  Rb3+ {[%clk 0:00:22]} 39. f3 {[%clk 0:00:15]}  Ne5 {[%clk 0:00:23]} 40. Kg2 {[%clk 0:00:14]}  Rb8 {[%clk 0:00:18]} 41. Ba4 {[%clk 0:00:10]}  Ng6 {[%clk 0:00:19]} 42. Kg3 {[%clk 0:00:10]}  Nf4 {[%clk 0:00:19]} 43. h4 {[%clk 0:00:09]}  h6 {[%clk 0:00:11]} 44. hxg5+ {[%clk 0:00:09]}  hxg5 {[%clk 0:00:12]} 45. Bd1 {[%clk 0:00:05]}  Rb2 {[%clk 0:00:12]} 46. Rxf7+ {[%clk 0:00:01]}  Kxf7 {[%clk 0:00:11]} 47. Be2 {[%clk 0:00:02]}  Nxe2+ {[%clk 0:00:10]} 48. Kf2 {[%clk 0:00:02]}  Nf4+ {[%clk 0:00:11]} 49. Ke3 {[%clk 0:00:03]}  Rb3+ {[%clk 0:00:09]} 50. Kd4 {[%clk 0:00:04]}  Ke7 {[%clk 0:00:06]} 51. Ke5 {[%clk 0:00:05]}  Rb5+ {[%clk 0:00:06]} 52. Kd4 {[%clk 0:00:06]}  e5+ {[%clk 0:00:07]} 53. Ke3 {[%clk 0:00:06]}  Rb3+ {[%clk 0:00:07]} 54. Kd2 {[%clk 0:00:07]}  Rb2+ {[%clk 0:00:08]} 55. Kc3 {[%clk 0:00:07]}  Rf2 {[%clk 0:00:08]} 56. Kc4 {[%clk 0:00:07]}  Rxf3 {[%clk 0:00:09]} 57. Kc5 {[%clk 0:00:07]}  Re3 {[%clk 0:00:09]} 58. Kb5 {[%clk 0:00:07]}  Rxe4 {[%clk 0:00:10]} 59. Kc5 {[%clk 0:00:08]}  Re3 {[%clk 0:00:11]} 60. Kb5 {[%clk 0:00:09]}  Rf3 {[%clk 0:00:11]} 61. Kc6 {[%clk 0:00:10]}  e4 {[%clk 0:00:12]} 62. Kc5 {[%clk 0:00:11]}  e3 {[%clk 0:00:13]} 63. Kd4 {[%clk 0:00:12]}  e2 {[%clk 0:00:14]} 64. Ke5 {[%clk 0:00:12]}  Ng6+ {[%clk 0:00:12]} 65. Kd4 {[%clk 0:00:11]}  Rf4+ {[%clk 0:00:13]} 66. Kd3 {[%clk 0:00:11]}  e1=Q {[%clk 0:00:13]} 67. Kc2 {[%clk 0:00:11]}  Rc4+ {[%clk 0:00:13]} 68. Kd3 {[%clk 0:00:11]}  Rc3+ {[%clk 0:00:12]} 69. Kd4 {[%clk 0:00:11]}  Qe3+ {[%clk 0:00:13]} 70. Kd5 {[%clk 0:00:12]}  Rc5# {[%clk 0:00:14]} 0-1


[Site "https://www.chess.com"]

[Event "Titled Tuesday Blitz January 03 Early 2023"]
[White "Berezin, Viktor"]
[Black "Prudnykova, Olga"]
[WhiteFideId "14107872"]
[BlackFideId "14121093"]
[WhiteElo "2307"]
[BlackElo "2268"]
[Result "0-1"]
[Round "05"]
[TimeControl "180+2"]
[Date "2023.01.03"]
[WhiteClock "0:00:01"]
[BlackClock "0:00:14"]

1. d4 {[%clk 0:02:58]}  Nf6 {[%clk 0:02:59]} 2. Nf3 {[%clk 0:02:57]}  g6 {[%clk 0:02:58]} 3. g3 {[%clk 0:02:57]}  Bg7 {[%clk 0:02:58]} 4. Bg2 {[%clk 0:02:57]}  d5 {[%clk 0:02:53]} 5. c4 {[%clk 0:02:57]}  O-O {[%clk 0:02:52]} 6. O-O {[%clk 0:02:56]}  dxc4 {[%clk 0:02:52]} 7. Na3 {[%clk 0:02:56]}  c5 {[%clk 0:02:52]} 8. Nxc4 {[%clk 0:02:53]}  cxd4 {[%clk 0:02:40]} 9. Nxd4 {[%clk 0:02:53]}  Qc7 {[%clk 0:02:38]} 10. Qb3 {[%clk 0:02:41]}  e5 {[%clk 0:02:05]} 11. Nb5 {[%clk 0:02:38]}  Qe7 {[%clk 0:02:05]} 12. Nbd6 {[%clk 0:02:07]}  Nc6 {[%clk 0:02:01]} 13. e3 {[%clk 0:01:54]}  Be6 {[%clk 0:01:29]} 14. Qxb7 {[%clk 0:01:44]}  Qxb7 {[%clk 0:01:29]} 15. Nxb7 {[%clk 0:01:44]}  Bxc4 {[%clk 0:01:29]} 16. Bxc6 {[%clk 0:01:43]}  Bxf1 {[%clk 0:01:29]} 17. Kxf1 {[%clk 0:01:29]}  Rac8 {[%clk 0:01:29]} 18. Ba4 {[%clk 0:01:29]}  Rc7 {[%clk 0:01:23]} 19. Na5 {[%clk 0:01:25]}  Ne4 {[%clk 0:01:11]} 20. f3 {[%clk 0:01:18]}  Rfc8 {[%clk 0:01:10]} 21. Nb3 {[%clk 0:01:10]}  Nc5 {[%clk 0:01:10]} 22. Nxc5 {[%clk 0:01:08]}  Rxc5 {[%clk 0:01:10]} 23. Bd2 {[%clk 0:01:07]}  e4 {[%clk 0:01:06]} 24. fxe4 {[%clk 0:00:58]}  Bxb2 {[%clk 0:00:52]} 25. Rb1 {[%clk 0:00:58]}  Bc1 {[%clk 0:00:50]} 26. Bb4 {[%clk 0:00:40]}  Rc4 {[%clk 0:00:49]} 27. Ke2 {[%clk 0:00:37]}  Rxe4 {[%clk 0:00:49]} 28. Bd7 {[%clk 0:00:17]}  Rc7 {[%clk 0:00:35]} 29. Ba5 {[%clk 0:00:15]}  Rxe3+ {[%clk 0:00:28]} 30. Kf1 {[%clk 0:00:13]}  Rxd7 {[%clk 0:00:27]} 31. Rxc1 {[%clk 0:00:13]}  Red3 {[%clk 0:00:26]} 32. Ke2 {[%clk 0:00:13]}  Ra3 {[%clk 0:00:26]} 33. Rc8+ {[%clk 0:00:11]}  Kg7 {[%clk 0:00:26]} 34. Bc3+ {[%clk 0:00:11]}  Kh6 {[%clk 0:00:24]} 35. Bd2+ {[%clk 0:00:10]}  Kg7 {[%clk 0:00:24]} 36. Bc3+ {[%clk 0:00:10]}  f6 {[%clk 0:00:24]} 37. h4 {[%clk 0:00:03]}  Rxa2+ {[%clk 0:00:24]} 38. Kf3 {[%clk 0:00:03]}  Ra3 {[%clk 0:00:20]} 39. Kg4 {[%clk 0:00:04]}  h5+ {[%clk 0:00:18]} 40. Kh3 {[%clk 0:00:04]}  Rd3 {[%clk 0:00:16]} 41. Bb2 {[%clk 0:00:02]}  Rxg3+ {[%clk 0:00:16]} 42. Kh2 {[%clk 0:00:02]}  Raf3 {[%clk 0:00:15]} 43. Rc6 {[%clk 0:00:01]}  Rg4 {[%clk 0:00:14]} 0-1


[Site "https://www.chess.com"]

[Event "Titled Tuesday Blitz January 03 Early 2023"]
[White "Garv Gaur"]
[Black "Zia, Tahsin Tajwar"]
[WhiteFideId "45030839"]
[BlackFideId "10211888"]
[WhiteElo "2006"]
[BlackElo "2315"]
[Result "1-0"]
[Round "05"]
[TimeControl "180+2"]
[Date "2023.01.03"]
[WhiteClock "0:02:09"]
[BlackClock "0:00:44"]

1. d4 {[%clk 0:03:00]}  Nf6 {[%clk 0:02:57]} 2. Nf3 {[%clk 0:02:59]}  g6 {[%clk 0:02:54]} 3. c4 {[%clk 0:02:59]}  Bg7 {[%clk 0:02:50]} 4. g3 {[%clk 0:03:00]}  O-O {[%clk 0:02:48]} 5. Bg2 {[%clk 0:03:01]}  d6 {[%clk 0:02:46]} 6. O-O {[%clk 0:03:01]}  Nbd7 {[%clk 0:02:41]} 7. Nc3 {[%clk 0:03:02]}  Re8 {[%clk 0:02:36]} 8. e4 {[%clk 0:03:02]}  e5 {[%clk 0:02:35]} 9. h3 {[%clk 0:03:02]}  c6 {[%clk 0:02:32]} 10. Re1 {[%clk 0:03:00]}  a5 {[%clk 0:02:28]} 11. Be3 {[%clk 0:02:56]}  Qc7 {[%clk 0:02:24]} 12. Qc2 {[%clk 0:02:56]}  exd4 {[%clk 0:02:09]} 13. Nxd4 {[%clk 0:02:57]}  Nc5 {[%clk 0:02:03]} 14. Rad1 {[%clk 0:02:52]}  Ne6 {[%clk 0:01:55]} 15. b3 {[%clk 0:02:51]}  Nxd4 {[%clk 0:01:50]} 16. Bxd4 {[%clk 0:02:52]}  Be6 {[%clk 0:01:49]} 17. Na4 {[%clk 0:02:44]}  c5 {[%clk 0:01:46]} 18. Bb2 {[%clk 0:02:40]}  Rad8 {[%clk 0:01:34]} 19. Nc3 {[%clk 0:02:40]}  Qc8 {[%clk 0:01:34]} 20. Kh2 {[%clk 0:02:39]}  h5 {[%clk 0:01:31]} 21. Nb5 {[%clk 0:02:39]}  h4 {[%clk 0:01:29]} 22. Nxd6 {[%clk 0:02:34]}  Rxd6 {[%clk 0:01:21]} 23. Rxd6 {[%clk 0:02:34]}  Qc7 {[%clk 0:01:13]} 24. Be5 {[%clk 0:02:25]}  hxg3+ {[%clk 0:01:01]} 25. Bxg3 {[%clk 0:02:25]}  Qc8 {[%clk 0:00:54]} 26. Qd2 {[%clk 0:02:19]}  Nh5 {[%clk 0:00:52]} 27. Rd1 {[%clk 0:02:15]}  Kh7 {[%clk 0:00:45]} 28. Rd8 {[%clk 0:02:14]}  Rxd8 {[%clk 0:00:43]} 29. Qxd8 {[%clk 0:02:15]}  Qc6 {[%clk 0:00:44]} 30. Rd6 {[%clk 0:02:09]} 1-0


[Site "https://www.chess.com"]

[Event "Titled Tuesday Blitz January 03 Early 2023"]
[White "Vifleemskaia, Svetlana"]
[Black "Gavilan Diaz, Mario"]
[WhiteFideId "4129490"]
[BlackFideId "2260905"]
[WhiteElo "1971"]
[BlackElo "2271"]
[Result "1-0"]
[Round "05"]
[TimeControl "180+2"]
[Date "2023.01.03"]
[WhiteClock "0:00:16"]
[BlackClock "0:00:02"]

1. d4 {[%clk 0:02:28]}  Nf6 {[%clk 0:02:58]} 2. c4 {[%clk 0:02:28]}  e6 {[%clk 0:02:58]} 3. Nc3 {[%clk 0:02:28]}  Bb4 {[%clk 0:02:58]} 4. e3 {[%clk 0:02:29]}  O-O {[%clk 0:02:58]} 5. Ne2 {[%clk 0:02:30]}  c5 {[%clk 0:02:57]} 6. a3 {[%clk 0:02:30]}  Ba5 {[%clk 0:02:45]} 7. dxc5 {[%clk 0:02:29]}  Bxc3+ {[%clk 0:02:15]} 8. Nxc3 {[%clk 0:02:27]}  Qe7 {[%clk 0:02:06]} 9. b4 {[%clk 0:02:17]}  a5 {[%clk 0:02:05]} 10. Bb2 {[%clk 0:02:16]}  Nc6 {[%clk 0:02:03]} 11. b5 {[%clk 0:02:08]}  Ne5 {[%clk 0:01:58]} 12. Qd6 {[%clk 0:02:05]}  Qxd6 {[%clk 0:01:50]} 13. cxd6 {[%clk 0:02:06]}  Ng6 {[%clk 0:01:38]} 14. b6 {[%clk 0:02:00]}  a4 {[%clk 0:01:16]} 15. f3 {[%clk 0:01:20]}  Ra5 {[%clk 0:01:11]} 16. Nb5 {[%clk 0:01:15]}  Ne8 {[%clk 0:00:51]} 17. c5 {[%clk 0:01:07]}  f5 {[%clk 0:00:40]} 18. Bc3 {[%clk 0:01:06]}  Ra8 {[%clk 0:00:40]} 19. Bc4 {[%clk 0:00:58]}  Nf6 {[%clk 0:00:39]} 20. Nc7 {[%clk 0:00:57]}  Rb8 {[%clk 0:00:38]} 21. Ke2 {[%clk 0:00:52]}  Kh8 {[%clk 0:00:38]} 22. Rhd1 {[%clk 0:00:50]}  e5 {[%clk 0:00:30]} 23. Bb5 {[%clk 0:00:48]}  e4 {[%clk 0:00:22]} 24. f4 {[%clk 0:00:43]}  Ng4 {[%clk 0:00:20]} 25. h3 {[%clk 0:00:43]}  Nf6 {[%clk 0:00:20]} 26. Bxa4 {[%clk 0:00:42]}  Nh4 {[%clk 0:00:20]} 27. Kf2 {[%clk 0:00:40]}  Ng6 {[%clk 0:00:20]} 28. Bb5 {[%clk 0:00:39]}  Ne8 {[%clk 0:00:14]} 29. a4 {[%clk 0:00:34]}  Nxc7 {[%clk 0:00:12]} 30. bxc7 {[%clk 0:00:33]}  Ra8 {[%clk 0:00:12]} 31. a5 {[%clk 0:00:34]}  Re8 {[%clk 0:00:11]} 32. g4 {[%clk 0:00:31]}  fxg4 {[%clk 0:00:09]} 33. hxg4 {[%clk 0:00:31]}  Nf8 {[%clk 0:00:10]} 34. f5 {[%clk 0:00:29]}  h5 {[%clk 0:00:11]} 35. Rh1 {[%clk 0:00:28]}  Kg8 {[%clk 0:00:09]} 36. Rxh5 {[%clk 0:00:27]}  g6 {[%clk 0:00:09]} 37. Rh8+ {[%clk 0:00:25]}  Kf7 {[%clk 0:00:09]} 38. Rah1 {[%clk 0:00:19]}  gxf5 {[%clk 0:00:07]} 39. gxf5 {[%clk 0:00:19]}  Ne6 {[%clk 0:00:02]} 40. fxe6+ {[%clk 0:00:18]}  Kxe6 {[%clk 0:00:02]} 41. Rxe8+ {[%clk 0:00:18]}  Kd5 {[%clk 0:00:02]} 42. Rh5# {[%clk 0:00:16]} 1-0


[Site "https://www.chess.com"]

[Event "Titled Tuesday Blitz January 03 Early 2023"]
[White "Kukula, Pawel"]
[Black "Viskelis, Darius"]
[WhiteFideId "1115081"]
[BlackFideId "12800830"]
[WhiteElo "2135"]
[BlackElo "2166"]
[Result "0-1"]
[Round "05"]
[TimeControl "180+2"]
[Date "2023.01.03"]
[WhiteClock "0:00:12"]
[BlackClock "0:00:10"]

1. d4 {[%clk 0:02:47]}  d5 {[%clk 0:02:57]} 2. Bf4 {[%clk 0:02:46]}  Bf5 {[%clk 0:02:56]} 3. e3 {[%clk 0:02:44]}  e6 {[%clk 0:02:55]} 4. c4 {[%clk 0:02:44]}  Bxb1 {[%clk 0:02:53]} 5. Rxb1 {[%clk 0:02:44]}  Bb4+ {[%clk 0:02:53]} 6. Ke2 {[%clk 0:02:44]}  dxc4 {[%clk 0:02:50]} 7. f3 {[%clk 0:02:38]}  Nf6 {[%clk 0:02:46]} 8. Kf2 {[%clk 0:02:38]}  O-O {[%clk 0:02:46]} 9. Bxc4 {[%clk 0:02:37]}  Bd6 {[%clk 0:02:39]} 10. Bg3 {[%clk 0:02:37]}  Nbd7 {[%clk 0:02:10]} 11. b4 {[%clk 0:02:35]}  Nb6 {[%clk 0:02:04]} 12. Bd3 {[%clk 0:02:30]}  Nbd5 {[%clk 0:02:00]} 13. Qd2 {[%clk 0:02:26]}  a5 {[%clk 0:01:58]} 14. b5 {[%clk 0:02:24]}  c5 {[%clk 0:01:35]} 15. Ne2 {[%clk 0:02:22]}  Nb4 {[%clk 0:01:27]} 16. a3 {[%clk 0:02:11]}  Nxd3+ {[%clk 0:01:25]} 17. Qxd3 {[%clk 0:02:12]}  Rc8 {[%clk 0:01:12]} 18. Rhd1 {[%clk 0:02:08]}  c4 {[%clk 0:01:07]} 19. Qc3 {[%clk 0:02:00]}  Nd5 {[%clk 0:01:06]} 20. Qa1 {[%clk 0:01:55]}  Bxg3+ {[%clk 0:00:57]} 21. hxg3 {[%clk 0:01:55]}  Qg5 {[%clk 0:00:51]} 22. f4 {[%clk 0:01:50]}  Qg4 {[%clk 0:00:45]} 23. Nc3 {[%clk 0:01:46]}  Rfe8 {[%clk 0:00:39]} 24. e4 {[%clk 0:01:37]}  Nf6 {[%clk 0:00:35]} 25. Rh1 {[%clk 0:01:34]}  Qg6 {[%clk 0:00:29]} 26. Rbe1 {[%clk 0:01:26]}  Red8 {[%clk 0:00:29]} 27. Qd1 {[%clk 0:01:23]}  Ng4+ {[%clk 0:00:28]} 28. Kg1 {[%clk 0:01:20]}  h5 {[%clk 0:00:26]} 29. Qd2 {[%clk 0:01:01]}  Qf6 {[%clk 0:00:23]} 30. Rd1 {[%clk 0:01:01]}  g6 {[%clk 0:00:22]} 31. e5 {[%clk 0:01:01]}  Qf5 {[%clk 0:00:21]} 32. Qe2 {[%clk 0:00:56]}  Rd7 {[%clk 0:00:19]} 33. Rh4 {[%clk 0:00:56]}  Rcd8 {[%clk 0:00:18]} 34. Rxg4 {[%clk 0:00:48]}  Qxg4 {[%clk 0:00:17]} 35. Qxg4 {[%clk 0:00:48]}  hxg4 {[%clk 0:00:17]} 36. Ne2 {[%clk 0:00:48]}  c3 {[%clk 0:00:16]} 37. Kf2 {[%clk 0:00:47]}  c2 {[%clk 0:00:16]} 38. Rc1 {[%clk 0:00:47]}  Rc8 {[%clk 0:00:16]} 39. Ke3 {[%clk 0:00:48]}  Rc4 {[%clk 0:00:16]} 40. Kd3 {[%clk 0:00:48]}  Rdc7 {[%clk 0:00:16]} 41. Kd2 {[%clk 0:00:24]}  b6 {[%clk 0:00:16]} 42. Kd3 {[%clk 0:00:24]}  Ra4 {[%clk 0:00:16]} 43. Rxc2 {[%clk 0:00:22]}  Rxc2 {[%clk 0:00:15]} 44. Kxc2 {[%clk 0:00:23]}  Rxa3 {[%clk 0:00:16]} 45. Nc3 {[%clk 0:00:23]}  Ra1 {[%clk 0:00:13]} 46. d5 {[%clk 0:00:23]}  exd5 {[%clk 0:00:13]} 47. Nxd5 {[%clk 0:00:24]}  Rg1 {[%clk 0:00:13]} 48. Nxb6 {[%clk 0:00:24]}  Rxg2+ {[%clk 0:00:13]} 49. Kc3 {[%clk 0:00:23]}  Rxg3+ {[%clk 0:00:13]} 50. Kc4 {[%clk 0:00:24]}  Rf3 {[%clk 0:00:13]} 51. Nd5 {[%clk 0:00:23]}  g3 {[%clk 0:00:13]} 52. b6 {[%clk 0:00:22]}  g2 {[%clk 0:00:13]} 53. b7 {[%clk 0:00:23]}  g1=Q {[%clk 0:00:13]} 54. b8=Q+ {[%clk 0:00:23]}  Kg7 {[%clk 0:00:12]} 55. Ne7 {[%clk 0:00:12]}  Qc1+ {[%clk 0:00:11]} 56. Kd5 {[%clk 0:00:12]}  Rd3+ {[%clk 0:00:11]} 57. Ke4 {[%clk 0:00:12]}  Qe3# {[%clk 0:00:10]} 0-1


[Site "https://www.chess.com"]